Cogmind - Beta 14 --- EXPLORER MODE // 2024.11.26 @ 13:56:33 // AFD2021/Volatile Player: mrjoebobfred Result: Destroyed by 8R-AWN with 8R-AWN's Boregun Performance ------------- Evolutions (0) 0 Regions Visited (3) 600 Robots Destroyed (23) 115 Value Destroyed (665) 665 Prototype IDs (5) 100 Alien Tech Used (0) 0 Bonus (0) 0 TOTAL SCORE: 1480 Bonus ------- None Cogmind --------- Core Integrity 0/250 Matter 300/300 Energy 99/100 System Corruption 0% Temperature Cool (0) Movement Core (800) Ox15 Location -10/Exiles Parts ------- > --- POWER (1) -------- (None) > --- PROPULSION (2) --- (None) > --- UTILITY (3) ------ Heat Sink High-capacity Storage Unit Utility Shielding > --- WEAPON (2) ------- Particle Cannon Hammer > --- INVENTORY (20) --- Light Treads Compact Wheel Compact Wheel Medium Storage Unit Experimental Sensor Array Seismic Detector Improved Light Armor Plating Improved Light Armor Plating Particle Cannon Particle Cannon Particle Cannon Peak State ------------ > --- POWER ------------ Ion Engine > --- PROPULSION ------- Light Treads Light Treads > --- UTILITY ---------- Heat Sink High-capacity Storage Unit Utility Shielding > --- WEAPON ----------- Particle Cannon Particle Cannon > --- INVENTORY -------- Compact Wheel Compact Wheel Medium Storage Unit Experimental Sensor Array Seismic Detector Improved Light Armor Plating Improved Light Armor Plating Particle Cannon Particle Cannon Hammer [Rating: 12] Favorites ----------- Power Ion Engine Engine Ion Engine Propulsion Light Treads Treads Light Treads Utility Heat Sink Device Heat Sink Storage High-capacity Storage Unit Protection Utility Shielding Weapon Particle Cannon Energy Cannon Particle Cannon Ballistic Gun Assault Rifle Impact Weapon Hammer Build | -11 -10 -10 -10 ------- Run | Yrd Mat Min Exi Slots Evolved 1 | . 1 . . Power . | . . . . Propulsion . | . . . . Utility 1 | . 1 . . Weapon . | . . . . Parts Attached 14 | 6 5 2 1 Power 2 | 1 . 1 . Engine 2 | 1 . 1 . Core . | . . . . Reactor . | . . . . Propulsion 2 | 2 . . . Treads 2 | 2 . . . Leg . | . . . . Wheel . | . . . . Hover . | . . . . Flight . | . . . . Utility 5 | 1 3 1 . Device 2 | . 2 . . Storage 2 | 1 1 . . Processor . | . . . . Hackware . | . . . . Protection 1 | . . 1 . Artifact . | . . . . Weapon 5 | 2 2 . 1 Energy Gun . | . . . . Energy Cannon 2 | . 2 . . Ballistic Gun 2 | 2 . . . Ballistic Cannon . | . . . . Launcher . | . . . . Special Weapon . | . . . . Impact Weapon 1 | . . . 1 Slashing Weapon . | . . . . Piercing Weapon . | . . . . Special Melee Weapon . | . . . . Unidentified Prototypes . | . . . . Parts Lost 4 | . . 1 3 Power 2 | . . 1 1 Propulsion 2 | . . . 2 Utility . | . . . . Weapon . | . . . . Highest Loss Streak 3 | . . 1 3 To Critical Strikes 3 | . . . 3 Average Slot Usage (%) 98 | . 98 98 94 Engine 11 | . 12 11 11 Treads 24 | . 25 25 20 Device 21 | . 23 18 12 Storage 12 | . 12 12 12 Protection 2 | . . 5 12 Energy Cannon 24 | . 24 25 21 Peak Build Rating 12 | 6 10 12 12 Average Rating 10 | 4 9 11 11 On Entrance 7 | . 6 10 12 Naked Turns . | . . . . Heaviest Build 55 | 18 55 55 55 Greatest Support 40 | 40 40 40 40 Greatest Overweight (x) 17 | . 1 1 17 Average Overweight (x) . | . . 1 1 Largest Inventory Capacity 20 | 10 20 20 20 Average Capacity 18 | 7 18 20 20 Most Carried 11 | . 7 11 11 Average Carried 6 | . 5 9 11 Final Capacity 20 | 10 20 20 20 Final Carried 11 | . 7 11 11 Class Distribution -------------------- 100% | Hacker-Mutant Dominant Class ---------------- Hacker-Mutant | -10/Materials Hacker-Mutant | -10/Mines Hacker-Mutant | -10/Exiles Resources | -11 -10 -10 -10 ----------- Run | Yrd Mat Min Exi Matter Collected 324 | 217 93 14 . Remotely . | . . . . Salvage Created 833 | . 686 75 72 Parts 42 | . 38 4 . Haulers Intercepted . | . . . . Recyclers Shooed 1 | . 1 . . Parts Field Recycled . | . . . . Retrieved Matter . | . . . . Parts Self-Destructed . | . . . . Prevented . | . . . . Kills | -11 -10 -10 -10 ------- Run | Yrd Mat Min Exi Combat Hostiles Destroyed 25 | . 16 2 7 Cannons 17 | . 14 1 2 AOE 8 | . 2 1 5 Classes Destroyed 8 | . 6 1 1 Builder 2 | . 2 . . Tunneler 1 | . 1 . . Recycler 1 | . 1 . . Watcher 1 | . 1 . . Swarmer 4 | . 4 . . Grunt 12 | . 12 . . Demolisher 2 | . . 2 . Assembled 7 | . . . 7 Best Kill Streak 7 | . 5 2 7 Combat Bots Only 7 | . 2 2 7 Max Kills in Single Turn 4 | . 3 2 4 Gunslinging . | . . . . Exploded 3 | . 1 1 3 Melee . | . . . . Uniques/NPCs Destroyed . | . . . . Combat | -11 -10 -10 -10 -------- Run | Yrd Mat Min Exi Hostile Shots Fired 100 | . 44 3 53 Missed 18 | . 11 . 7 Damage Taken 813 | . 217 77 519 Core 251 | . 44 . 207 Absorbed by Shields . | . . . . Redirected to Shielding 19 | . . 4 15 Ignored by Resistances 501 | . 147 45 309 Core Remaining (%) 100 | 100 . . . Volleys Fired 24 | . 18 2 4 Largest 2 | . 2 2 2 Hottest 136 | . 136 136 136 Shots Fired 48 | . 36 4 8 Gun . | . . . . Cannon 48 | . 36 4 8 Launcher . | . . . . Special . | . . . . Kinetic . | . . . . Thermal 48 | . 36 4 8 Explosive . | . . . . Electromagnetic . | . . . . Robot Hit Streak 15 | . 15 7 8 Robot Miss Streak 1 | . 1 . 1 Penetration Max . | . . . . Secondary Targets . | . . . . Shots Hit Robots 41 | . 26 4 11 Core Hits 38 | . 27 3 8 Critical Kills . | . . . . Critical Parts Destroyed 1 | . . . 1 Critical Strikes 2 | . . . 2 Smash 2 | . . . 2 Melee Attacks 5 | . . . 5 Impact 5 | . . . 5 Slashing . | . . . . Piercing . | . . . . Sneak Attacks . | . . . . Combat Hostiles . | . . . . Follow-up Attacks . | . . . . Damage Inflicted 2038 | . 1103 260 675 Guns . | . . . . Cannons 726 | . 539 81 106 Explosions 1160 | . 564 179 417 Melee 152 | . . . 152 Ramming . | . . . . Kinetic . | . . . . Thermal 1417 | . 813 81 523 Explosive 107 | . 107 . . Electromagnetic 29 | . 29 . . Impact 152 | . . . 152 Slashing . | . . . . Piercing . | . . . . Entropic 333 | . 154 179 . Highest Corruption . | . . . . Average Corruption . | . . . . Corruption Purged . | . . . . Corruption Blocked . | . . . . Overload Shots . | . . . . Overflow Damage 111 | . 68 . 43 Projectiles 1 | . 1 . . Explosions 76 | . 67 . 9 Melee 34 | . . . 34 Knockbacks 1 | . . . 1 Impact 1 | . . . 1 Kinetic . | . . . . Secondary . | . . . . Self-Inflicted Damage 38 | . 7 . 31 Shots 2 | . 1 . 1 Rammed . | . . . . Targets Rammed . | . . . . Kicked . | . . . . Crushed . | . . . . Highest Temperature 237 | . 237 65 192 Average Temperature 66 | . 61 38 100 Received Heat Transfer 147 | . 147 . . Siege Activations . | . . . . Robots Corrupted . | . . . . Combat Hostiles . | . . . . Parts Fried . | . . . . Impact Corruptions 1 | . . . 1 Robots Melted . | . . . . Combat Hostiles . | . . . . Parts Melted 4 | . 4 . . Heat Transferred 2223 | . 1422 148 653 Parts Sabotaged . | . . . . Parts Stolen . | . . . . Parts Stripped . | . . . . Power Chain Reactions . | . . . . Alert | -11 -10 -10 -10 ------- Run | Yrd Mat Min Exi Peak Influence 404 | . 404 78 . Initial . | . . . . Average 54 | . 86 8 . Maximum Alert Level 2 | . 2 . . Low Security (%) 92 | 100 87 100 . Level 1 5 | . 9 . . Level 2 2 | . 3 . . Level 3 . | . . . . Level 4 . | . . . . Level 5 . | . . . . High Security . | . . . . Max Security . | . . . . Squads Dispatched 2 | . 2 . . Investigation 2 | . 2 . . Extermination . | . . . . Reinforcement . | . . . . Assault . | . . . . Garrison . | . . . . Intercept . | . . . . Searches Triggered . | . . . . Construction Impeded . | . . . . Haulers Reinforced . | . . . . Active Scanning Responses . | . . . . Cargo Convoy Interrupts . | . . . . Stealth | -11 -10 -10 -10 --------- Run | Yrd Mat Min Exi Distress Signals 2 | . 2 . . Communications Jammed . | . . . . Distress Signals . | . . . . Times Spotted 33 | . 23 2 8 Peak Tracking Total 9 | . 3 2 9 Tactical Retreats 1 | . 1 . . Traps | -11 -10 -10 -10 ------- Run | Yrd Mat Min Exi Traps Triggered 2 | . 2 . . Indirectly 1 | . 1 . . Trap Hack Attempts . | . . . . Triggered . | . . . . Disarmed . | . . . . Reprogrammed . | . . . . Reused . | . . . . Traps Extracted . | . . . . Installed . | . . . . Triggered . | . . . . Machines | -11 -10 -10 -10 ---------- Run | Yrd Mat Min Exi Machines Disabled 4 | . 2 . 2 Max in Single Turn 2 | . 1 . 2 Machines Repaired . | . . . . Machines Dismantled . | . . . . Machines Sabotaged . | . . . . Overloaded Fab Kills . | . . . . Hacking | -11 -10 -10 -10 --------- Run | Yrd Mat Min Exi Machines Accessed 9 | . 9 . . Terminals 8 | . 8 . . Fabricators . | . . . . Repair Stations . | . . . . Recycling Units 1 | . 1 . . Scanalyzers . | . . . . Garrison Access . | . . . . Total Hacks 41 | . 41 . . Successful 33 | . 33 . . Failed 8 | . 8 . . Catastrophic . | . . . . Database Lockouts . | . . . . Manual 33 | . 33 . . Terminals 38 | . 38 . . Fabricators . | . . . . Repair Stations . | . . . . Recycling Units 3 | . 3 . . Scanalyzers . | . . . . Garrison Access . | . . . . Terminal Hacks 23 | . 23 . . Robot Schematic 2 | . 2 . . Robot Analysis 10 | . 10 . . Prototype ID Bank 6 | . 6 . . Locate Traps 3 | . 3 . . Hauler Manifests 1 | . 1 . . Zone Layout 1 | . 1 . . Fabricator Hacks . | . . . . Repair Station Hacks . | . . . . Recycling Unit Hacks 1 | . 1 . . Retrieve Components 1 | . 1 . . Scanalyzer . | . . . . Garrison Access Hacks . | . . . . Unauthorized Hacks 9 | . 9 . . Terminals 7 | . 7 . . Botnet 2 | . 2 . . Skim 5 | . 5 . . Fabricators . | . . . . Repair Stations . | . . . . Recycling Units 2 | . 2 . . Reject 1 | . 1 . . Tunnel 1 | . 1 . . Scanalyzers . | . . . . Garrison Access . | . . . . Data Cores Recovered . | . . . . Used . | . . . . Hacking Detections 8 | . 8 . . Full Trace Events 1 | . 1 . . Feedback Events . | . . . . Feedback Blocked . | . . . . Robot Schematics Acquired 2 | . 2 . . Robots Built . | . . . . Authchips . | . . . . Time . | . . . . Total Robot Build Rating . | . . . . Part Schematics Acquired . | . . . . Parts Built . | . . . . Authchips . | . . . . Time . | . . . . Total Part Build Rating . | . . . . Parts Repaired . | . . . . Time . | . . . . Parts Recycled . | . . . . Recycled Matter . | . . . . Retrieved Matter . | . . . . Retrieved Components 3 | . 3 . . Parts Scanalyzed . | . . . . Part Schematics Acquired . | . . . . Parts Damaged . | . . . . Bothacking | -11 -10 -10 -10 ------------ Run | Yrd Mat Min Exi Used RIF Installer . | . . . . Robots Hacked . | . . . . Non-combat . | . . . . Combat . | . . . . Robot Hacks Applied . | . . . . Relay Couplers Released . | . . . . Fabnet Peak Effective % . | . . . . Robots Rewired . | . . . . Allies Hacked . | . . . . Hacks Repelled . | . . . . Allies | -11 -10 -10 -10 -------- Run | Yrd Mat Min Exi Total Allies . | . . . . Largest Group . | . . . . Highest-Rated Group . | . . . . Highest-Rated Ally . | . . . . Total Orders . | . . . . Ally Attacks . | . . . . Total Damage . | . . . . Kills . | . . . . Allies Corrupted . | . . . . Allies Melted . | . . . . Intel | -11 -10 -10 -10 ------- Run | Yrd Mat Min Exi Robot Analysis Total 10 | . 10 . . Derelict Logs Recovered . | . . . . Drone Launches . | . . . . Drone Recoveries . | . . . . Exploration | -11 -10 -10 -10 ------------- Run | Yrd Mat Min Exi Turns Passed 3541 | 93 2032 1276 140 Spaces Moved 1438 | 49 824 521 44 Core 4 | 3 . . 1 Treads 1434 | 46 824 521 43 Legs . | . . . . Wheels . | . . . . Hover . | . . . . Flight . | . . . . Fastest Speed 50 | 50 160 240 240 Average Speed 228 | 153 223 240 258 Slowest Speed 900 | 160 240 240 900 Overloaded Moves . | . . . . Propulsion Burnouts . | . . . . Robots Hopped . | . . . . Cave-ins Triggered . | . . . . Exploration Rate (%) 52 | 5 97 94 14 Regions Visited 3 Branch Regions 2 Pre-discovered Areas 1 | . 1 . . Known Exits Taken 3 | 1 1 1 . Unknown Exits Taken . | . . . . Scrap Searched . | . . . . Spaces Dug . | . . . . Terrain Destroyed 259 | . 183 46 30 Melee . | . . . . Projectile . | . . . . AOE 259 | . 183 46 30 Terrain Rammed . | . . . . Walls Destroyed . | . . . . Machines Disabled . | . . . . Actions | -11 -10 -10 -10 --------- Run | Yrd Mat Min Exi Total 1636 | 64 975 543 54 Wait 146 | 10 121 15 . Move 1435 | 48 823 520 44 Hop . | . . . . Pick Up 10 | . 6 4 . Fast Attach 11 | 6 4 1 . Attach . | . . . . Detach . | . . . . Swap 3 | . 1 1 1 Drop 2 | . 2 . . Fire 24 | . 18 2 4 Melee 5 | . . . 5 Ram . | . . . . Kick . | . . . . Crush . | . . . . Escape Stasis . | . . . . Rewire . | . . . . Trap . | . . . . Miscellaneous . | . . . . Route ------- -11/Scrapyard -10/Materials (discovered 5 exits: *Mat x3 / *Min / Sub) -10/Mines (discovered 3 exits: *Mat x2 / *Exi) -10/Exiles History --------- Turn | Location | Event 6 | -11/Scrapyard | Identified exit to Materials 6 | -11/Scrapyard | Discovered exit to Materials (range 15) 94 | -11/Scrapyard | Entered Materials 94 | -10/Materials | Evolved 1 slot: Utility x1 308 | -10/Materials | Build established: Hacker-Mutant 538 | -10/Materials | Identified exit to Materials 538 | -10/Materials | Discovered exit to Materials (range 14) 728 | -10/Materials | Identified exit to Mines 728 | -10/Materials | Discovered exit to Mines (range 8) 1062 | -10/Materials | Learned 2 Storage zone layouts 1088 | -10/Materials | Discovered exit to Materials (range 3) 1107 | -10/Materials | Learned 2 Mines zone layouts 1143 | -10/Materials | Learned Storage trap positions 1167 | -10/Materials | Loaded intel: 22 non-interactive machine locations 1179 | -10/Materials | Learned Storage emergency access door positions 1182 | -10/Materials | Learned Storage stockpile data 1183 | -10/Materials | Identified exit to Subcaves 1201 | -10/Materials | Loaded intel: 1 recycling unit location 1225 | -10/Materials | Learned Storage trap positions 2126 | -10/Materials | Entered Mines 2127 | -10/Mines | Identified exit to Exiles 2134 | -10/Mines | Met a Derelict bent on vengeance 2285 | -10/Mines | Found a damaged Exp. Sensor Array with a note attached 2290 | -10/Mines | Found Prototype Device 2315 | -10/Mines | Discovered exit to Materials (range 11) 2762 | -10/Mines | Assembled infested the area 2809 | -10/Mines | Received a Rocket Launcher from a helpful Derelict 2950 | -10/Mines | Joined a pair of Derelicts in attacking an 0b10 outpost 3042 | -10/Mines | Discovered exit to Materials (range 14) 3393 | -10/Mines | Deemed a non-threat by the Exiles lab entrance 3402 | -10/Mines | Entered Exiles 3460 | -10/Exiles | Met 8R-AWN 3493 | -10/Exiles | Attacked by the Exiles 3521 | -10/Exiles | Destroyed 7 combat bots 3523 | -10/Exiles | Core integrity fell below 50% 3536 | -10/Exiles | Core integrity fell below 20% 3542 | -10/Exiles | Destroyed by 8R-AWN with 8R-AWN's Boregun Last Messages --------------- 03533_ Penetrated by HV Slug. 03533_ HV Slug penetrates Wall. 03533_ Penetrated by HV Slug. 03533_ HV Slug penetrates Wall. 03535_ Penetrated by HV Slug. 03535_ HV Slug penetrates Wall. 03535_ Penetrated by HV Slug. 03535_ HV Slug penetrates Earth. 03538_ Penetrated by HV Slug. 03538_ HV Slug penetrates Earth. 03538_ HV Slug penetrates Wall. 03538_ 8R-AWN suffers critical hit (Smash). 03538_ Destroyed Prototype Device. 03538_ 8R-AWN system corrupted by crushing effect. 03540_ Penetrated by HV Slug. 03540_ HV Slug penetrates Earth. 03542_ Penetrated by HV Slug. 03542_ HV Slug penetrates Earth. 03542_ Penetrated by HV Slug. Map ----- +----------------------------------------------------+ | ?????????????????????????????????????????????????? | | ?????????????????????????????????????????????????? | | ?????????????????????????????????????????????????? | | ?????????????????????????????????????????????????? | | ?????????????????????????????????????????????????? | | ?????????????????????????????????????????????????? | | ?????????????????????????????????????????????????? | | ?????????????????????????????????????????????????? | | ?????????????????????????????????????????????????? | | ?????????????????????????????????????????????????? | | ?????????????????????????????????????????????????? | | ?????????????????????????????????????????????????? | | ?????????????????????????????????????????????????? | | ?????????????????????????????????????????????????? | | ?????????????????????????????????????????????????? | | ?????????????????????????????????????????????????? | | ?????????????????????????????????????????????????? | | ?????????????????????????????????????????????????? | | ?????????????????????????????????????????????????? | | ?????????????????????????????????????????????? ? | | ?????????????????????????????????????????????# # | | ????????????????????????????????????????????# # | | ???????????????????????????????????????????# | | ???????????????????????#####???????????????# | | ??????????????????????##"g #??????????????## | | ??????????????????????#" @ #?????????????## #? | | ?????????????????????## ##????????????# #? | | ?????? ???????????### ###????????### #?? | | ?????? ???????# ########## #?? | | ????? ##### #""""## #??? | | ????? * ##?? | | ????? #; * #?? | | ????? ##;# ##? | | ????? ##;"""""#### ## | | ?????? ##?;######??#### * | | ?????? ;;;#?? ???????????##### | | ??????? ##?? ???????????????### | | ??????? # ##???#?????????????????### | | ??????? % " ?????????????????????????### | | ???????? #?#???????????????????????????#" | | ???????? #??????????????????????????????#### | | ????????? ??????????????????????????????????# | | ?????????## ##???????????????????????????????????# | | ???????????#?????????????????????????????????????? | | ?????????????????????????????????????????????????? | | ?????????????????????????????????????????????????? | | ?????????????????????????????????????????????????? | | ?????????????????????????????????????????????????? | | ?????????????????????????????????????????????????? | | ?????????????????????????????????????????????????? | +----------------------------------------------------+ Best States ------------- Heat Dissipation 35 Energy Generation 10 Energy Capacity 250 Matter Stores 300 Matter Capacity 300 Sight Range 16 Terrain Scan Density 10 Resistance: KI 35 Resistance: TH 35 Resistance: EX 35 Resistance: EM 35 Resistance: I 35 Resistance: S 35 Resistance: P 35 Utility Shielding 33 Evasion (%) 40 Recoil Reduction 2 Offensive Hacking 20 Item Schematics ----------------- None Robot Schematics ------------------ O-16 Technician | -10/Materials | Hacked M-13 Machinist | -10/Materials | Hacked Fabricated ------------ Nothing Alien Tech Used ----------------- None Achievements -------------- None Challenges ------------ None Game ------ Seed TargetForceKit Manual? 0 Play Time 00:17:35 Cumulative 556.0 hours Start 2024.11.26 @ 13:35:47 End 2024.11.26 @ 13:56:33 Sessions 3 Manual Loads 0 Difficulty Explorer Special Mode AFD2021/Volatile Game No. 90 Rogue 6 Adventurer 6 Explorer 78 Win Type - Total 39 Types 15/7/2/5/2/1/1/4/2 Lore% 87 Gallery% 87 Achievement% 91 Wizard Run 0 Options --------- Layout 1 ASCII 0 Keyboard 0 Movement Mouse Keybinds 0 Fullscreen 1 Font 24/Smallcaps Map View 50x35 Zoom Use 0% Tactical HUD 1 Map Filters NONE Filters NONE Steam 1 RUN: ad430a76-24eb-48e0-bf53-cf35b3dedbb1